bitfinex-derivatives/quotes_BTCF0:USTF0_20241022
["timestamp","ask_amount","ask_price","bid_price","bid_amount"]
[1729619245957,0.24421,67406.0,67404.0,0.05848191]
[1729619245958,0.074211,67405.0,67404.0,0.05848191]
[1729619246169,0.074216,67401.0,67400.0,0.435016]
[1729619246861,0.074216,67401.0,67400.0,0.3608]
[1729619252469,0.074216,67401.0,67398.0,0.05852607]
[1729619252470,0.244216,67401.0,67398.0,0.05852607]
[1729619252673,0.074225,67393.0,67392.0,0.3608]
[1729619255083,0.074225,67393.0,67392.0,0.435026]
[1729619255283,0.074225,67393.0,67392.0,0.36544225]
[1729619255582,0.074225,67393.0,67392.0,0.3608]
[1729619257379,0.14841668,67393.0,67392.0,0.3608]
[1729619260173,0.14841668,67393.0,67392.0,0.41932607]
[1729619261880,0.14841668,67393.0,67392.0,0.05852607]
[1729619262082,0.074226,67392.0,67391.0,0.05852607]
[1729619262386,0.074227,67391.0,67390.0,0.05852607]
[1729619262691,0.07423,67388.0,67387.0,0.04392221]
[1729619262882,0.24423,67388.0,67387.0,0.04392221]
[1729619263081,0.074231,67387.0,67385.0,0.05857333]
[1729619263280,0.244232,67386.0,67385.0,0.05857333]
[1729619264585,0.074232,67386.0,67385.0,0.05857333]
[1729619264887,0.074232,67386.0,67385.0,0.074233]
[1729619265095,0.244232,67386.0,67385.0,0.074233]
[1729619265992,0.244232,67386.0,67385.0,0.14731121]
[1729619266187,0.244232,67386.0,67385.0,0.074233]
[1729619267882,0.074233,67385.0,67384.0,0.11192195]
[1729619268293,0.074233,67385.0,67384.0,0.1265626]
[1729619268490,0.074233,67385.0,67384.0,0.15324696]
[1729619268692,0.074233,67385.0,67384.0,0.09468436]
[1729619269287,0.074233,67385.0,67384.0,0.09004172]
[1729619270388,0.074233,67385.0,67384.0,0.16527572]
[1729619271395,0.074233,67385.0,67384.0,0.22848119]
[1729619272286,0.074233,67385.0,67384.0,0.22389008]
[1729619272495,0.074233,67385.0,67384.0,0.16527572]
[1729619273096,0.074233,67385.0,67384.0,0.22389008]
[1729619274194,0.074233,67385.0,67384.0,0.16527572]
[1729619274801,0.074233,67385.0,67384.0,0.18170816]
[1729619275498,0.074233,67385.0,67384.0,0.27405724]
[1729619275691,0.07419168,67393.0,67384.0,0.70578498]
[1729619275892,0.12312048,67393.0,67392.0,0.435026]
[1729619276092,0.12312048,67393.0,67392.0,0.53033474]
[1729619276305,0.12312048,67393.0,67392.0,0.6183477]
[1729619276597,0.12312048,67393.0,67392.0,0.52569244]
[1729619277197,0.12312048,67393.0,67392.0,0.61834772]
[1729619277785,0.12312048,67393.0,67392.0,0.6137054]
[1729619277999,0.12312048,67393.0,67392.0,0.61834768]
[1729619278203,0.12312048,67393.0,67392.0,0.52569244]
[1729619278398,0.12312048,67393.0,67392.0,0.53033472]
[1729619278804,0.12312048,67393.0,67392.0,0.61839696]
[1729619279098,0.12312048,67393.0,67392.0,0.53033472]
[1729619279297,0.12312048,67393.0,67392.0,0.43966828]
[1729619279605,0.12312048,67393.0,67392.0,0.52990858]
[1729619279904,0.12312048,67393.0,67392.0,0.1644663]
[1729619280197,0.29312048,67393.0,67392.0,0.0902403]
[1729619280392,0.29312048,67393.0,67392.0,0.17833552]
[1729619280592,0.29312048,67393.0,67392.0,0.1644663]
[1729619280804,0.29312048,67393.0,67392.0,0.16910858]
[1729619281302,0.29312048,67393.0,67392.0,0.27671743]
[1729619281504,0.29312048,67393.0,67392.0,0.27671739]
[1729619281710,0.29312048,67393.0,67392.0,0.29820097]
[1729619282004,0.29312048,67393.0,67392.0,0.19059212]
[1729619282205,0.29312048,67393.0,67392.0,0.18594988]
[1729619282502,0.23312048,67393.0,67392.0,0.19059212]
[1729619282702,0.23312048,67393.0,67392.0,0.18594988]
[1729619282908,0.23312048,67393.0,67392.0,0.19059211]
[1729619284019,0.23312048,67393.0,67392.0,0.19059216]
[1729619284912,0.30731216,67393.0,67392.0,0.19059216]
[1729619288817,0.19731216,67393.0,67392.0,0.19059216]
[1729619289923,0.19731216,67393.0,67392.0,0.27871596]
[1729619291618,0.19731216,67393.0,67392.0,0.27407368]
[1729619291825,0.19731216,67393.0,67392.0,0.27871585]
[1729619293420,0.12308716,67393.0,67392.0,0.27871585]
[1729619293723,0.12308716,67393.0,67392.0,1.10422676]
[1729619294417,0.12308716,67393.0,67392.0,1.34915658]
[1729619295424,0.12308716,67393.0,67392.0,1.34915524]
[1729619296623,0.12308716,67393.0,67392.0,1.36578781]
[1729619296925,0.12308716,67393.0,67392.0,1.34777443]
[1729619298918,0.12308716,67393.0,67392.0,1.34313299]
[1729619299124,0.04882752,67393.0,67392.0,1.02661627]
[1729619299319,0.04882752,67393.0,67392.0,1.23920881]
[1729619299627,0.04882752,67393.0,67392.0,1.11520675]
[1729619299824,0.04882752,67393.0,67392.0,0.88563959]
[1729619300122,0.12305252,67393.0,67392.0,0.55081213]
[1729619300326,0.29305252,67393.0,67392.0,0.63873137]
[1729619300517,0.29305252,67393.0,67392.0,0.6172357]
[1729619300727,0.29305252,67393.0,67392.0,0.61723548]
[1729619301022,0.29305252,67393.0,67392.0,0.52932855]
[1729619301713,0.04882752,67393.0,67392.0,0.69932855]
[1729619301914,0.04882752,67393.0,67392.0,1.16679464]
[1729619302122,0.04882752,67393.0,67392.0,1.06012855]
[1729619302317,0.04882752,67393.0,67392.0,1.52849699]
[1729619302516,0.04882752,67393.0,67392.0,1.96842941]
[1729619302717,0.04882752,67393.0,67392.0,1.99627862]
[1729619302920,0.04882752,67393.0,67392.0,2.21369344]
[1729619303323,0.04882752,67393.0,67392.0,1.99627811]
[1729619305915,0.04882752,67393.0,67392.0,1.99548881]
[1729619306115,0.04882752,67393.0,67392.0,2.11411124]
[1729619306320,0.04882752,67393.0,67392.0,2.09090407]
[1729619306521,0.04882752,67393.0,67392.0,1.65038545]
[1729619306924,0.04882752,67393.0,67392.0,1.75292548]
[1729619307133,0.04882752,67393.0,67392.0,1.36165264]
[1729619307322,0.04882752,67393.0,67392.0,1.34691474]
[1729619307521,0.04882752,67393.0,67392.0,0.63490927]
[1729619308724,0.04882752,67393.0,67392.0,0.80490927]
[1729619310531,0.04882752,67393.0,67392.0,0.80580275]
[1729619311934,0.04882752,67393.0,67392.0,0.44036137]
[1729619312130,0.04882752,67393.0,67392.0,0.80116137]
[1729619312332,0.04882752,67393.0,67392.0,0.80580329]
[1729619313822,0.04882752,67393.0,67392.0,0.80116137]
[1729619314134,0.04882752,67393.0,67392.0,0.80580328]
[1729619315328,0.04882752,67393.0,67392.0,0.80575451]
[1729619316031,0.04882752,67393.0,67392.0,0.76111451]
[1729619316536,0.04882752,67393.0,67392.0,0.63575451]
[1729619317532,0.04882752,67393.0,67392.0,0.63575446]
[1729619319235,0.04882752,67393.0,67392.0,0.75883446]
[1729619320634,0.04882752,67393.0,67392.0,0.92883446]
[1729619320825,0.04882752,67393.0,67392.0,0.9241926]
[1729619321027,0.04882752,67393.0,67392.0,0.92883446]
[1729619323739,0.04882752,67393.0,67392.0,0.80575446]
[1729619324544,0.04882752,67393.0,67392.0,0.82432131]
[1729619324736,0.04882752,67393.0,67392.0,0.80606924]
[1729619325042,0.04882752,67393.0,67392.0,0.80606931]
[1729619326140,0.04882752,67393.0,67392.0,0.95313536]
[1729619326339,0.04882752,67393.0,67392.0,1.0558701]
[1729619326546,0.04882752,67393.0,67392.0,0.93201455]
[1729619326939,0.04882752,67393.0,67392.0,0.82927762]
[1729619328148,0.04882752,67393.0,67392.0,0.80606931]
[1729619328445,0.04882752,67393.0,67392.0,0.82927789]
[1729619328650,0.04882752,67393.0,67392.0,0.82927775]
[1729619331045,0.04882752,67393.0,67392.0,0.94866714]
[1729619331250,0.04882752,67393.0,67392.0,0.95330886]
[1729619331451,0.04882752,67393.0,67392.0,1.0561122]
[1729619332040,0.04882752,67393.0,67392.0,0.82927776]
[1729619332251,0.04882752,67393.0,67392.0,0.76927776]
[1729619334145,0.04882752,67393.0,67392.0,0.65946425]
[1729619334337,0.04882752,67393.0,67392.0,0.53865088]
[1729619334338,0.12305252,67393.0,67392.0,0.53865088]
[1729619334539,0.12305252,67393.0,67392.0,0.66777198]
[1729619334743,0.04882752,67393.0,67392.0,0.75427067]
[1729619334943,0.12305252,67393.0,67392.0,0.74684309]
[1729619335338,0.04882752,67393.0,67392.0,0.87126448]
[1729619335743,0.04882752,67393.0,67392.0,0.98852043]
[1729619336353,0.04882752,67393.0,67392.0,1.04852043]
[1729619336854,0.04882752,67393.0,67392.0,0.93126448]
[1729619337158,0.04882752,67393.0,67392.0,0.95447347]
[1729619338448,0.12305252,67393.0,67392.0,0.70983279]
[1729619338647,0.12305252,67393.0,67392.0,0.78948974]
[1729619338851,0.12305252,67393.0,67392.0,0.562617]
[1729619339358,0.12305252,67393.0,67392.0,0.66548294]
[1729619339549,0.12305252,67393.0,67392.0,0.78977289]
[1729619339951,0.12305252,67393.0,67392.0,0.562617]
[1729619340553,0.12305252,67393.0,67392.0,0.58582696]
[1729619340965,0.12305252,67393.0,67392.0,0.562617]
[1729619341461,0.12305252,67393.0,67392.0,0.56261696]
[1729619342053,0.12305252,67393.0,67392.0,0.56230952]
[1729619343664,0.12305252,67393.0,67392.0,0.58551973]
[1729619344249,0.84465252,67393.0,67392.0,0.22471973]
[1729619344454,0.44516,67392.0,67373.0,0.00092]
[1729619344655,0.775046,67374.0,67358.0,0.3608]
[1729619344862,0.244262,67359.0,67358.0,0.3608]
[1729619346359,0.245262,67359.0,67358.0,0.3718]
[1729619347866,0.416262,67359.0,67358.0,0.3818]
[1729619348065,0.777062,67359.0,67358.0,0.021]
[1729619348366,0.777062,67359.0,67350.0,0.3608]
[1729619348367,0.7028,67359.0,67343.0,0.05864175]
[1729619348565,0.074279,67344.0,67343.0,0.05864175]
[1729619348759,0.074281,67342.0,67341.0,0.05864175]
[1729619349064,0.074278,67345.0,67341.0,0.00743318]
[1729619349265,0.074278,67345.0,67343.0,0.074279]
[1729619349266,0.17,67344.0,67343.0,0.074279]
[1729619349457,0.17,67344.0,67343.0,0.08171218]
[1729619349654,0.3608,67359.0,67343.0,0.08171218]
[1729619349863,1.50758714,67386.0,67343.0,0.08171218]
[1729619349864,0.074272,67350.0,67349.0,0.3608]
[1729619350368,0.244272,67350.0,67349.0,0.3608]
[1729619351974,0.245272,67350.0,67349.0,0.3608]
[1729619352161,0.246272,67350.0,67349.0,0.3608]
[1729619354975,0.247272,67350.0,67349.0,0.3608]
[1729619355479,0.246272,67350.0,67349.0,0.3608]
[1729619355682,0.248272,67350.0,67349.0,0.3608]
[1729619356078,0.244272,67350.0,67349.0,0.3608]
[1729619356381,0.248272,67350.0,67349.0,0.3608]
[1729619358180,0.246272,67350.0,67349.0,0.3608]
[1729619358789,0.245272,67350.0,67349.0,0.3608]
[1729619358988,0.246272,67350.0,67349.0,0.3608]
[1729619359189,0.245272,67350.0,67349.0,0.3608]
[1729619359386,0.246272,67350.0,67349.0,0.3608]
[1729619359987,0.245272,67350.0,67349.0,0.3608]
[1729619360193,0.246272,67350.0,67349.0,0.3608]
[1729619362186,0.245272,67350.0,67349.0,0.3608]
[1729619362385,0.246272,67350.0,67349.0,0.3608]
[1729619362993,0.245272,67350.0,67349.0,0.3608]
[1729619363187,0.246272,67350.0,67349.0,0.3608]
[1729619366295,0.074274,67348.0,67347.0,0.02190889]
[1729619366496,0.172,67350.0,67346.0,0.3608]
[1729619366799,0.074275,67347.0,67346.0,0.3608]
[1729619367497,0.074276,67346.0,67345.0,0.0699]
[1729619367683,0.244276,67346.0,67345.0,0.0699]
[1729619368489,0.244276,67346.0,67345.0,0.02150452]
[1729619368695,0.074283,67340.0,67339.0,0.3608]
[1729619369001,0.244283,67340.0,67339.0,0.38305404]
[1729619370901,0.245283,67340.0,67339.0,0.38605404]
[1729619371104,0.246283,67340.0,67339.0,0.39205404]
[1729619373501,0.076283,67340.0,67339.0,0.39205404]
[1729619373697,0.002,67340.0,67339.0,0.46633804]
[1729619374098,0.002,67340.0,67339.0,0.47098373]
[1729619374299,0.002,67340.0,67339.0,0.55799073]
[1729619374503,0.002,67340.0,67339.0,0.55325012]
[1729619374901,0.076283,67340.0,67339.0,0.5672085]
[1729619375202,0.076283,67340.0,67339.0,0.57185416]
[1729619375502,0.15053307,67340.0,67339.0,0.58261733]
[1729619376304,0.15053307,67340.0,67339.0,0.47896612]
[1729619379398,0.15053307,67340.0,67339.0,0.48361185]
[1729619383411,0.15053307,67340.0,67339.0,0.49104495]
[1729619386710,0.15053307,67340.0,67339.0,0.59450165]
[1729619388615,0.17,67360.0,67339.0,1.3828414]
[1729619388808,0.074262,67359.0,67358.0,0.07358556]
[1729619389311,0.074262,67359.0,67357.0,0.07356852]
[1729619389513,0.074263,67358.0,67357.0,0.07356852]
[1729619389819,0.074263,67358.0,67357.0,0.15998389]
[1729619390208,0.074264,67357.0,67356.0,0.07356852]
[1729619390516,0.244264,67357.0,67356.0,0.08642403]
[1729619391217,0.074264,67357.0,67356.0,0.15997092]
[1729619391411,0.075264,67357.0,67356.0,0.08642403]
[1729619391713,0.076264,67357.0,67356.0,0.08642403]
[1729619393114,0.246264,67357.0,67356.0,0.08642403]
[1729619395413,0.074265,67356.0,67355.0,0.3608]
[1729619395608,0.074265,67356.0,67355.0,0.37287636]
[1729619395926,0.074265,67356.0,67355.0,0.39294606]
[1729619396413,0.002,67357.0,67356.0,0.074265]
[1729619396616,0.001,67357.0,67356.0,0.109563]
[1729619396809,0.075264,67357.0,67356.0,0.10885093]
[1729619397013,0.074264,67357.0,67356.0,0.01207636]
[1729619397512,0.075264,67357.0,67356.0,0.01207636]
[1729619398114,0.146264,67357.0,67356.0,0.01207636]
[1729619398312,0.074265,67356.0,67355.0,0.3608]
[1729619398517,0.074265,67356.0,67355.0,0.37287643]
[1729619398918,0.074265,67356.0,67355.0,0.3608]
[1729619399809,0.075265,67356.0,67355.0,0.3608]
[1729619400009,0.076265,67356.0,67355.0,0.3608]
[1729619402317,0.076265,67356.0,67355.0,0.52088963]
[1729619404619,0.076265,67356.0,67355.0,0.16008963]
[1729619406620,0.076265,67356.0,67355.0,0.0865367]
[1729619409515,0.076265,67356.0,67355.0,0.1608027]
[1729619409711,0.076265,67356.0,67355.0,0.17287879]
[1729619409914,0.076265,67356.0,67355.0,0.1608027]
[1729619410425,0.076265,67356.0,67355.0,0.074266]
[1729619410622,0.076265,67356.0,67355.0,0.08634232]
[1729619411815,0.076265,67356.0,67355.0,0.01207632]
[1729619412017,0.076265,67356.0,67355.0,0.08634238]
[1729619412218,0.076265,67356.0,67355.0,0.01207638]
[1729619412525,0.074266,67355.0,67354.0,0.3608]
[1729619412825,0.074266,67355.0,67354.0,0.37287667]
[1729619413723,0.076266,67355.0,67354.0,0.37287667]
[1729619414126,0.076266,67355.0,67354.0,0.44714467]
[1729619415725,0.076266,67355.0,67354.0,0.37287667]
[1729619417419,0.076266,67355.0,67354.0,0.74714526]
[1729619417420,0.002,67355.0,67354.0,0.74714526]
[1729619417619,0.002,67355.0,67354.0,0.85692477]
[1729619417825,0.07623353,67355.0,67354.0,0.81562477]
[1729619418032,0.07623353,67355.0,67354.0,0.83884668]
[1729619418231,0.07623353,67355.0,67354.0,0.81562477]
[1729619419029,0.07623353,67355.0,67354.0,0.83884655]
[1729619419424,0.15049953,67355.0,67354.0,0.81562477]
[1729619419630,0.15049953,67355.0,67354.0,0.71252504]
[1729619419823,0.15049953,67355.0,67354.0,0.71243181]
[1729619420019,0.15049953,67355.0,67354.0,0.71244814]
[1729619420235,0.15049953,67355.0,67354.0,0.60244814]
[1729619420928,0.15049953,67355.0,67354.0,0.6024477]
[1729619421431,0.15049953,67355.0,67354.0,0.70559586]
[1729619422119,0.07623353,67355.0,67354.0,0.70559586]
[1729619422424,0.15049953,67355.0,67354.0,0.6024477]
[1729619423032,0.07623353,67355.0,67354.0,0.6024477]
[1729619423223,0.07623353,67355.0,67354.0,0.70553365]
[1729619423424,0.07623353,67355.0,67354.0,0.6024477]
[1729619424529,0.07623353,67355.0,67354.0,0.60244757]
[1729619424936,0.07623353,67355.0,67354.0,0.70537029]
[1729619425436,0.15049953,67355.0,67354.0,0.70537029]
[1729619428134,0.15049953,67355.0,67354.0,0.70537043]
[1729619429035,0.07623353,67355.0,67354.0,0.87537043]
[1729619429229,0.07623353,67355.0,67354.0,1.34399259]
[1729619429433,0.07623353,67355.0,67354.0,0.89859259]
[1729619430535,0.07623353,67355.0,67354.0,1.34399259]
[1729619432236,0.07623353,67355.0,67354.0,0.89859259]
[1729619432431,0.07623353,67355.0,67354.0,0.79566987]
[1729619433134,0.07523353,67355.0,67354.0,0.79566987]
[1729619433327,0.04279464,67355.0,67354.0,0.79566987]
[1729619434639,0.04279464,67355.0,67354.0,0.77244771]
[1729619435439,0.04279464,67355.0,67354.0,0.76037192]
[1729619437341,0.04279464,67355.0,67354.0,0.77244702]
[1729619438237,0.04279464,67355.0,67354.0,0.76501619]
[1729619438436,0.04279464,67355.0,67354.0,0.76465721]
[1729619439036,0.04279464,67355.0,67354.0,0.76001294]
[1729619439541,0.04279464,67355.0,67354.0,0.98200332]
[1729619440333,0.04279464,67355.0,67354.0,0.92200332]
[1729619440935,0.04279464,67355.0,67354.0,0.93407817]
[1729619441827,0.04279464,67355.0,67354.0,0.95729889]
[1729619443543,0.04279464,67355.0,67354.0,0.92200332]
[1729619443740,0.04279464,67355.0,67354.0,0.95729908]
[1729619446040,0.04279464,67355.0,67354.0,0.88859908]
[1729619446544,0.04279464,67355.0,67354.0,1.24939908]
[1729619447443,0.04279464,67355.0,67354.0,1.24939935]
[1729619447743,0.04279464,67355.0,67354.0,1.13013251]
[1729619447943,0.04279464,67355.0,67354.0,1.13006223]
[1729619448348,0.00935628,67355.0,67354.0,1.13006223]
[1729619448841,0.00935628,67355.0,67354.0,1.24866223]
[1729619449033,0.00935628,67355.0,67354.0,1.24123149]
[1729619450041,0.11935628,67355.0,67354.0,0.93836349]
[1729619450240,0.11935628,67355.0,67353.0,0.08833983]
[1729619450241,0.74902228,67355.0,67353.0,0.08833983]
[1729619450445,0.74902228,67355.0,67344.0,0.3608]
[1729619450446,0.074273,67349.0,67346.0,0.08833983]
[1729619450643,0.11,67345.0,67344.0,0.38090104]
[1729619450843,0.184277,67345.0,67344.0,0.38090104]
[1729619451644,0.074277,67345.0,67344.0,0.38090104]
[1729619451950,0.0642,67354.0,67347.0,0.074275]
[1729619451951,0.074272,67350.0,67347.0,0.074275]
[1729619452145,0.074272,67350.0,67349.0,0.11]
[1729619452447,0.074272,67350.0,67349.0,0.18359374]
[1729619453150,0.075272,67350.0,67349.0,0.18359374]
[1729619453446,0.076272,67350.0,67349.0,0.18359374]
[1729619453643,0.076272,67350.0,67349.0,0.11]
[1729619454534,0.076272,67350.0,67349.0,0.19832868]
[1729619454737,0.076272,67350.0,67349.0,0.11]
[1729619455957,0.076272,67350.0,67348.0,0.16260268]
[1729619455958,0.074273,67349.0,67348.0,0.08832868]
[1729619456144,0.074273,67349.0,67344.0,0.38090104]
[1729619456145,0.074277,67345.0,67344.0,0.38090104]
[1729619456445,0.184277,67345.0,67344.0,0.4838217]
[1729619456649,0.184277,67345.0,67344.0,0.38090104]
[1729619457248,0.184277,67345.0,67344.0,0.46914874]
[1729619458048,0.184277,67345.0,67344.0,0.38090104]
[1729619458247,0.001,67349.0,67344.0,0.38090104]
[1729619458450,0.074275,67348.0,67347.0,0.1982272]
[1729619458653,0.074275,67348.0,67347.0,0.0882272]
[1729619459539,0.075275,67348.0,67347.0,0.0882272]
[1729619459943,0.076275,67348.0,67347.0,0.0882272]
[1729619460352,0.076275,67348.0,67347.0,0.0956596]
[1729619460651,0.076275,67348.0,67347.0,0.0074324]
[1729619461055,0.074275,67347.0,67346.0,0.0882272]
[1729619461247,0.074275,67347.0,67346.0,0.09565964]
[1729619461442,0.076274,67348.0,67347.0,0.074275]
[1729619461643,0.076274,67348.0,67347.0,0.19170744]
[1729619462048,0.075274,67348.0,67347.0,0.19170744]
[1729619462255,0.074274,67348.0,67347.0,0.19635276]
[1729619462856,0.075274,67348.0,67347.0,0.19635276]
[1729619463048,0.520714,67348.0,67344.0,0.00088]
[1729619463246,0.074282,67341.0,67340.0,0.00222738]
[1729619463446,0.184282,67341.0,67340.0,0.00222738]
[1729619463954,0.184282,67341.0,67338.0,0.3608]
[1729619463955,0.074284,67339.0,67338.0,0.3608]
[1729619464160,0.074284,67339.0,67338.0,0.37287929]
[1729619464355,0.074284,67339.0,67338.0,0.37287931]
[1729619464555,0.074284,67339.0,67338.0,0.605085]
[1729619464752,0.074278,67345.0,67342.0,0.07428]
[1729619464960,0.002,67348.0,67344.0,0.435079]
[1729619465263,0.001,67348.0,67345.0,0.00464574]
[1729619465453,0.001,67348.0,67344.0,0.435079]
[1729619465454,0.074275,67347.0,67346.0,0.00464574]
[1729619466059,0.074275,67347.0,67346.0,0.07892174]
[1729619468065,0.075275,67347.0,67346.0,0.0789213]
[1729619468260,0.076275,67347.0,67346.0,0.0789213]
[1729619469663,0.076275,67347.0,67346.0,0.16498409]
[1729619471656,0.076275,67347.0,67346.0,0.16498407]
[1729619472560,0.076275,67347.0,67346.0,0.25323848]
[1729619472865,0.076275,67347.0,67346.0,0.16498407]
[1729619474056,0.076275,67347.0,67346.0,0.52578407]
[1729619474257,0.076275,67347.0,67346.0,0.61408441]
[1729619475462,0.076275,67347.0,67346.0,0.61408444]
[1729619475669,0.076275,67347.0,67346.0,0.52583003]
[1729619475863,0.076275,67347.0,67346.0,0.6141587]
[1729619476365,0.076275,67347.0,67346.0,0.52583003]
[1729619477563,0.076275,67347.0,67346.0,0.62849628]
[1729619477764,0.076275,67347.0,67346.0,0.52583003]
[1729619478877,0.076275,67347.0,67346.0,0.62861845]
[1729619479081,0.076275,67347.0,67346.0,0.62410223]
[1729619479271,0.076275,67347.0,67346.0,0.62874755]
[1729619484780,0.246275,67347.0,67346.0,0.62874755]
[1729619485373,0.246275,67347.0,67346.0,0.62875325]
[1729619485782,0.246275,67347.0,67346.0,0.52595742]
[1729619486372,0.186275,67347.0,67346.0,0.09088142]
[1729619486575,0.186275,67347.0,67346.0,0.45168142]
[1729619487576,0.186275,67347.0,67346.0,0.09088142]
[1729619487776,1.686275,67347.0,67346.0,0.0862361]
[1729619488472,0.186275,67347.0,67346.0,0.08653163]
[1729619488685,0.186275,67347.0,67346.0,0.17505639]
[1729619488980,0.186275,67347.0,67346.0,0.24933239]
[1729619489187,0.186275,67347.0,67346.0,0.16545302]
[1729619489880,0.186275,67347.0,67346.0,0.2684192]
[1729619490079,0.186275,67347.0,67346.0,0.16080763]
[1729619490881,0.186275,67347.0,67346.0,0.26385671]
[1729619491187,0.076275,67347.0,67346.0,0.26385671]
[1729619491479,0.186275,67347.0,67346.0,0.26385671]
[1729619491885,0.076275,67347.0,67346.0,0.26385671]
[1729619492177,0.186275,67347.0,67346.0,0.26385671]
[1729619492579,0.186275,67347.0,67346.0,0.16080763]
[1729619493780,0.186275,67347.0,67346.0,0.08653163]
[1729619494390,0.076275,67347.0,67346.0,0.16080763]
[1729619494691,0.186275,67347.0,67346.0,0.16080763]
[1729619494880,0.186275,67347.0,67346.0,0.53368559]
[1729619495578,0.076275,67347.0,67346.0,0.55691247]
[1729619495874,0.49540837,67348.0,67347.0,0.074275]
[1729619496078,0.16576837,67348.0,67347.0,0.41871468]
[1729619496273,0.00935628,67355.0,67354.0,0.074268]
[1729619496574,0.00935628,67355.0,67354.0,1.56239369]
[1729619496775,0.07425,67370.0,67365.0,0.074255]
[1729619497082,0.0713,67371.0,67365.0,1.22603093]
[1729619497281,0.145549,67371.0,67365.0,1.11603089]
[1729619497478,0.184254,67366.0,67365.0,1.04177589]
[1729619497875,0.185254,67366.0,67365.0,1.04177589]
[1729619498181,0.185254,67366.0,67365.0,1.04061223]
[1729619498382,0.185254,67366.0,67365.0,0.93133579]
[1729619498581,0.185254,67366.0,67365.0,1.03299125]
[1729619498786,0.186254,67366.0,67365.0,0.93133579]
[1729619499283,0.185254,67366.0,67365.0,0.81277579]
[1729619499593,0.186254,67366.0,67365.0,0.81277579]
[1729619499887,0.186254,67366.0,67365.0,0.83249168]
[1729619500276,0.076254,67366.0,67365.0,0.83249168]
[1729619500483,0.076254,67366.0,67365.0,0.92068535]
[1729619500484,0.075254,67366.0,67365.0,0.92068535]
[1729619500685,0.076254,67366.0,67365.0,0.92068535]
[1729619501083,0.076254,67366.0,67365.0,0.92068495]
[1729619501279,0.076254,67366.0,67365.0,0.83249128]
[1729619501680,0.002,67366.0,67365.0,0.90674628]
[1729619502282,0.002,67366.0,67365.0,0.99493995]
[1729619502684,0.002,67366.0,67365.0,0.90674628]
[1729619502885,0.002,67366.0,67365.0,0.99493995]
[1729619503482,0.002,67366.0,67365.0,0.90674628]
[1729619504391,0.002,67366.0,67365.0,0.91417611]
[1729619504587,0.002,67366.0,67365.0,1.00236978]
[1729619504797,0.002,67366.0,67365.0,0.91417611]
[1729619505885,0.002,67366.0,67365.0,1.03261611]
[1729619506286,0.076254,67366.0,67365.0,1.03261611]
[1729619506486,0.002,67366.0,67365.0,1.03261611]
[1729619506986,0.002,67366.0,67365.0,1.03187352]
[1729619507388,0.002,67366.0,67365.0,0.91343352]
[1729619507389,0.076254,67366.0,67365.0,0.91343352]
[1729619507690,0.076254,67366.0,67365.0,0.94608448]
[1729619508887,0.076254,67366.0,67365.0,0.82764448]
[1729619509495,0.076254,67366.0,67365.0,0.82021465]
[1729619511188,0.002,67366.0,67365.0,0.82021465]
[1729619511389,0.002,67366.0,67365.0,0.81557089]
[1729619513289,0.076254,67366.0,67365.0,0.81557089]
[1729619514288,0.076254,67366.0,67365.0,0.74131589]
[1729619514794,0.076254,67366.0,67365.0,0.82726793]
[1729619515098,0.076254,67366.0,67365.0,0.90152293]
[1729619515294,0.076254,67366.0,67365.0,0.81557089]
[1729619515897,0.076254,67366.0,67365.0,0.90147933]
[1729619516491,0.076254,67366.0,67365.0,0.81557089]
[1729619516990,0.076254,67366.0,67365.0,0.90144844]
[1729619517387,0.076254,67366.0,67365.0,0.82764496]
[1729619518997,0.076254,67366.0,67365.0,0.82300109]
[1729619519200,0.076254,67366.0,67365.0,0.82764493]
[1729619519503,0.076254,67366.0,67365.0,0.91358378]
[1729619520001,0.076254,67366.0,67365.0,0.82764493]
[1729619520501,0.076254,67366.0,67365.0,0.93764493]
[1729619524302,0.076254,67366.0,67365.0,0.92557089]
[1729619524999,0.186254,67366.0,67365.0,0.74131589]
[1729619526898,0.076254,67366.0,67365.0,0.74131589]
[1729619528501,0.631574,67366.0,67359.0,0.05890677]
[1729619528701,0.074266,67355.0,67354.0,0.07363347]
[1729619528912,0.765066,67355.0,67351.0,0.00222684]
[1729619529095,0.074281,67342.0,67340.0,0.10314709]
[1729619529407,0.294281,67342.0,67340.0,0.10314709]
[1729619529596,0.11,67342.0,67339.0,0.3608]
[1729619529798,0.074283,67340.0,67339.0,0.435084]
[1729619529999,0.074279,67344.0,67343.0,0.074279]
[1729619531199,0.074279,67344.0,67343.0,0.16016001]
[1729619531401,0.074279,67344.0,67343.0,0.16316001]
[1729619531604,0.074279,67344.0,67343.0,0.077279]
[1729619531911,0.074279,67344.0,67343.0,0.09746954]
[1729619532516,0.17,67346.0,67345.0,0.074277]
[1729619533199,0.244276,67346.0,67345.0,0.074277]
[1729619533696,0.244276,67346.0,67345.0,0.11940368]
[1729619534107,0.244276,67346.0,67345.0,0.12040368]
[1729619534600,0.244276,67346.0,67345.0,0.076277]
[1729619534911,0.244276,67346.0,67345.0,0.12040368]
[1729619535309,0.244276,67346.0,67345.0,0.076277]
[1729619535911,0.074276,67346.0,67345.0,0.076277]
[1729619539210,0.244276,67346.0,67345.0,0.076277]
[1729619543310,0.31851945,67346.0,67345.0,0.076277]
[1729619547508,0.31851945,67346.0,67345.0,0.002]
[1729619550307,0.31851945,67346.0,67345.0,0.076277]
[1729619552316,0.25851945,67346.0,67345.0,0.076277]
[1729619552819,0.3327629,67346.0,67345.0,0.002]
[1729619555020,0.3327629,67346.0,67345.0,0.076277]
[1729619557421,0.3327629,67346.0,67345.0,0.12053747]
[1729619558618,0.3327629,67346.0,67345.0,0.076277]
[1729619560422,0.3327629,67346.0,67345.0,0.16261279]
[1729619561127,0.074283,67340.0,67337.0,0.074286]
[1729619561321,0.074283,67340.0,67334.0,0.10314709]
[1729619561322,0.074289,67335.0,67334.0,0.10314709]
[1729619561526,0.11,67335.0,67332.0,0.074291]
[1729619561828,0.11,67335.0,67332.0,0.16308362]
[1729619561829,0.074291,67333.0,67332.0,0.16308362]
[1729619562018,0.074291,67333.0,67332.0,0.074291]
[1729619562322,0.074294,67330.0,67329.0,0.09102036]
[1729619562524,0.074294,67330.0,67329.0,0.16531536]
[1729619562525,0.184294,67330.0,67329.0,0.16531536]
[1729619563525,0.184294,67330.0,67329.0,0.07652274]
[1729619564422,0.185294,67330.0,67329.0,0.08052274]